[Event "1st 4NCL International Open"]
[Site "Telford"]
[Date "2018.11.02"]
[Round "3"]
[White "Bennett, Dominic L"]
[Black "Wall, Tim P"]
[Result "0-1"]
[ECO "A22"]
[WhiteElo "1933"]
[BlackElo "2253"]
[Annotator "ChessBase"]
[PlyCount "152"]
[EventDate "2018.10.31"]
[EventType "swiss"]
[EventCountry "GBR"]
[SourceTitle "playchess.com"]
[Source "ChessBase"]
[SourceQuality "1"]
[TimeControl "5400+30"]

1. c4 {[%emt 0:00:00]} e5 {[%emt 0:05:59]} 2. e3 {[%emt 0:01:27]} Nf6 {[%emt 0:01:16]} 3. Nc3 {[%emt 0:01:56]} d6 {[%emt 0:00:46]} 4. Be2 {[%emt 0:01:29]} Be7 {[%emt 0:00:55]} 5. Qc2 {[%emt 0:00:17]} c6 {[%emt 0:01:20]} 6. d4 {[%emt 0:00:41]} O-O {[%emt 0:02:06]} 7. Nf3 {[%emt 0:01:29]} Qc7 {[%emt 0:04:59]} 8. O-O {[%emt 0:04:24]} Re8 {[%emt 0:01:55]} 9. b3 {[%emt 0:00:57]} Bf8 {[%emt 0:01:53]} 10. Bb2 {[%emt 0:01:50]} e4 {[%emt 0:01:03]} 11. Nd2 {[%emt 0:01:21]} d5 {[%emt 0:01:52]} 12. Rfc1 {[%emt 0:00:24]} Bd6 {[%emt 0:01:35]} 13. Nf1 {[%emt 0:03:07]} dxc4 {[%emt 0:11:03]} 14. bxc4 {[%emt 0:01:46]} Bf5 {[%emt 0:00:35]} 15. Qd1 {[%emt 0:06:26]} Qd8 {[%emt 0:05:17]} 16. Qb3 {[%emt 0:10:46]} Nbd7 {[%emt 0:05:29]} 17. Ba3 {[%emt 0:01:49]} Bxa3 {[%emt 0:04:41]} 18. Qxa3 {[%emt 0:00:44]} Nf8 {[%emt 0:00:08]} 19. Rab1 {[%emt 0:03:10]} Re7 {[%emt 0:05:24]} 20. Rb2 {[%emt 0:01:51]} h5 {[%emt 0:02:59]} 21. Rcb1 {[%emt 0:00:59]} b6 {[%emt 0:02:24]} 22. Rd2 {[%emt 0:02:05]} h4 {[%emt 0:02:33]} 23. Qa4 {[%emt 0:01:01]} Rc8 {[%emt 0:01:34]} 24. Qd1 {[%emt 0:02:44]} h3 {[%emt 0:01:22]} 25. Ng3 {[%emt 0:01:10]} Bd7 {[%emt 0:05:53]} 26. d5 {[%emt 0:12:10]} cxd5 {[%emt 0:02:21]} 27. Nxd5 {[%emt 0:00:34]} Nxd5 {[%emt 0:00:09]} 28. cxd5 {[%emt 0:02:01]} hxg2 {[%emt 0:01:14]} 29. Bg4 {[%emt 0:00:32]} Nh7 {[%emt 0:09:21]} 30. Rb4 {[%emt 0:02:07]} Ng5 {[%emt 0:02:54]} 31. Kxg2 {[%emt 0:03:28]} Rc1 {[%emt 0:01:51]} 32. Qe2 {[%emt 0:08:38]} Re1 {[%emt 0:01:11]} 33. Qxe1 {[%emt 0:00:51]} Bxg4 {[%emt 0:00:10]} 34. Qb1 {[%emt 0:01:07]} Bf3+ {[%emt 0:07:11]} 35. Kf1 {[%emt 0:02:09]} Qc8 {[%emt 0:01:15]} 36. d6 {[%emt 0:00:44]} Qh3+ {[%emt 0:00:16]} 37. Ke1 {[%emt 0:00:07]} Rd7 {[%emt 0:00:40]} 38. Rc4 {[%emt 0:03:24]} Qxh2 {[%emt 0:01:32]} 39. Rc8+ {[%emt 0:00:58]} Kh7 {[%emt 0:00:04]} 40. Qb5 {[%emt 0:00:16]} Qg1+ {[%emt 0:01:11]} 41. Qf1 {[%emt 0:02:43]} Qh2 {[%emt 0:00:57]} 42. Rd5 {[%emt 0:01:09]} Bg2 {[%emt 0:01:00]} 43. Rxg5 {[%emt 0:01:56]} Bxf1 {[%emt 0:00:24]} 44. Rh5+ {[%emt 0:00:54]} Qxh5 {[%emt 0:00:06]} 45. Nxh5 {[%emt 0:00:06]} Bb5 {[%emt 0:01:31]} 46. Rc7 {[%emt 0:00:52]} Rxd6 {[%emt 0:01:13]} 47. Rxa7 {[%emt 0:00:12]} Bd7 {[%emt 0:00:43]} 48. Ng3 {[%emt 0:00:54]} f5 {[%emt 0:00:32]} 49. Ne2 {[%emt 0:00:14]} Kh6 {[%emt 0:00:16]} 50. Nd4 {[%emt 0:00:16]} Kg6 {[%emt 0:00:14]} 51. a4 {[%emt 0:00:17]} Kf6 {[%emt 0:01:06]} 52. Kd2 {[%emt 0:00:21]} g5 {[%emt 0:00:30]} 53. Kc3 {[%emt 0:00:10]} f4 {[%emt 0:00:17]} 54. Kb4 {[%emt 0:00:26]} fxe3 {[%emt 0:00:42]} 55. fxe3 {[%emt 0:00:03]} g4 {[%emt 0:00:24]} 56. Rc7 {[%emt 0:00:35]} g3 {[%emt 0:00:18]} 57. Rc1 {[%emt 0:01:10]} Ke5 {[%emt 0:00:41]} 58. Rg1 {[%emt 0:00:24]} Rxd4+ {[%emt 0:00:46]} 59. exd4+ {[%emt 0:00:08]} Kf4 {[%emt 0:00:03]} 60. Rf1+ {[%emt 0:04:14]} Ke3 {[%emt 0:00:17]} 61. Rf7 {[%emt 0:00:37]} g2 {[%emt 0:00:52]} 62. Rg7 {[%emt 0:00:48]} Kf2 {[%emt 0:00:12]} 63. Rf7+ {[%emt 0:00:42]} Ke2 {[%emt 0:00:41]} 64. Rg7 {[%emt 0:00:12]} Kf3 {[%emt 0:00:46]} 65. Rf7+ {[%emt 0:00:36]} Kg3 {[%emt 0:00:05]} 66. Rxd7 {[%emt 0:00:08]} g1=Q {[%emt 0:00:05]} 67. Rg7+ {[%emt 0:00:06]} Kf2 {[%emt 0:00:03]} 68. Rxg1 {[%emt 0:00:05]} Kxg1 {[%emt 0:00:03]} 69. Kb5 {[%emt 0:01:48]} e3 {[%emt 0:00:09]} 70. Kxb6 {[%emt 0:00:38]} e2 {[%emt 0:00:06]} 71. a5 {[%emt 0:01:37]} e1=Q {[%emt 0:00:11]} 72. a6 {[%emt 0:00:24]} Qe4 {[%emt 0:02:44]} 73. Ka7 {[%emt 0:05:26]} Qc6 {[%emt 0:00:38]} 74. d5 {[%emt 0:00:23]} Qc7+ {[%emt 0:00:10]} 75. Ka8 {[%emt 0:00:05]} Qb6 {[%emt 0:00:04]} 76. a7 {[%emt 0:00:13]} Qc7 {[%emt 0:00:06]} 0-1

[Event "1st 4NCL International Open"]
[Site "Telford"]
[Date "2018.11.02"]
[Round "3"]
[White "Ther, Mate"]
[Black "Hill, Alistair"]
[Result "0-1"]
[ECO "B13"]
[WhiteElo "1759"]
[BlackElo "2203"]
[Annotator "ChessBase"]
[PlyCount "50"]
[EventDate "2018.10.31"]
[EventType "swiss"]
[EventCountry "GBR"]
[SourceTitle "playchess.com"]
[Source "ChessBase"]
[SourceQuality "1"]
[TimeControl "5400+30"]

1. e4 {[%emt 0:00:00]} c6 {[%emt 0:05:34]} 2. d4 {[%emt 0:00:00]} d5 {[%emt 0:00:03]} 3. exd5 {[%emt 0:00:00]} cxd5 {[%emt 0:00:04]} 4. Bd3 {[%emt 0:00:00]} Nc6 {[%emt 0:00:51]} 5. c3 {[%emt 0:00:00]} Nf6 {[%emt 0:00:17]} 6. Bf4 {[%emt 0:00:14]} g6 {[%emt 0:02:17]} 7. Ne2 {[%emt 0:00:06]} Bg7 {[%emt 0:00:08]} 8. h3 {[%emt 0:00:20]} O-O {[%emt 0:01:01]} 9. Nd2 {[%emt 0:00:12]} e5 {[%emt 0:15:40]} 10. dxe5 {[%emt 0:00:39]} Nh5 {[%emt 0:00:08]} 11. Bh2 {[%emt 0:00:30]} Nxe5 {[%emt 0:00:03]} 12. Bc2 {[%emt 0:00:42]} Qg5 {[%emt 0:02:11]} 13. g4 {[%emt 0:03:37]} Nxg4 {[%emt 0:06:27]} 14. hxg4 {[%emt 0:01:52]} Bxg4 {[%emt 0:00:02]} 15. Nf1 {[%emt 0:07:09]} Rfe8 {[%emt 0:05:58]} 16. Ne3 {[%emt 0:00:16]} Bf3 {[%emt 0:00:13]} 17. Rg1 {[%emt 0:04:55]} Qh4 {[%emt 0:00:06]} 18. Bg3 {[%emt 0:02:00]} Nxg3 {[%emt 0:00:07]} 19. Rxg3 {[%emt 0:00:47]} Rxe3 {[%emt 0:00:35]} 20. fxe3 {[%emt 0:05:40]} Bxe2 {[%emt 0:00:22]} 21. Kxe2 {[%emt 0:00:18]} Qxg3 {[%emt 0:00:03]} 22. Qxd5 {[%emt 0:00:17]} Qh2+ {[%emt 0:12:12]} 23. Kd3 {[%emt 0:00:24]} Qc7 {[%emt 0:00:07]} 24. Ke2 {[%emt 0:03:50]} Rd8 {[%emt 0:00:04]} 25. Qg2 {[%emt 0:00:36]} Qc4+ {[%emt 0:01:23]} 0-1

[Event "1st 4NCL International Open"]
[Site "Telford"]
[Date "2018.11.02"]
[Round "3"]
[White "Akeya-Price, Robert"]
[Black "Jamieson, Ian"]
[Result "1/2-1/2"]
[ECO "A90"]
[WhiteElo "1730"]
[BlackElo "1947"]
[Annotator "NA"]
[PlyCount "96"]
[EventDate "2018.10.31"]
[EventType "swiss"]
[EventCountry "GBR"]
[SourceTitle "playchess.com"]
[Source "ChessBase"]
[SourceQuality "1"]
[TimeControl "5400+30"]

1. d4 {[%emt 0:00:00]} e6 {[%emt 0:00:00]} 2. c4 {[%emt 0:00:00]} f5 {[%emt 0:00:17]} 3. Nf3 {[%emt 0:00:06]} Nf6 {[%emt 0:00:12]} 4. g3 {[%emt 0:00:20]} d5 {[%emt 0:00:54]} 5. Bg2 {[%emt 0:00:48]} c6 {[%emt 0:00:06]} 6. Qc2 {[%emt 0:00:38]} Bd6 {[%emt 0:02:49]} 7. O-O {[%emt 0:01:26]} O-O {[%emt 0:00:06]} 8. b3 {[%emt 0:00:59]} Qe7 {[%emt 0:00:12]} 9. Bb2 {[%emt 0:01:29]} Ne4 {[%emt 0:01:38]} 10. Ne5 {[%emt 0:02:38]} Nd7 {[%emt 0:01:28]} 11. f3 {[%emt 0:05:09]} Nxe5 {[%emt 0:01:05]} 12. fxe4 {[%emt 0:07:06]} Ng4 {[%emt 0:00:28]} 13. e5 {[%emt 0:01:03]} Bb4 {[%emt 0:00:49]} 14. Qd3 {[%emt 0:04:38]} Bd7 {[%emt 0:00:59]} 15. Nd2 {[%emt 0:01:37]} Nh6 {[%emt 0:02:39]} 16. Rac1 {[%emt 0:07:16]} Rac8 {[%emt 0:00:49]} 17. a3 {[%emt 0:03:03]} Ba5 {[%emt 0:00:01]} 18. b4 {[%emt 0:01:11]} Bd8 {[%emt 0:02:14]} 19. b5 {[%emt 0:03:59]} Qe8 {[%emt 0:02:33]} 20. a4 {[%emt 0:03:14]} g5 {[%emt 0:00:48]} 21. cxd5 {[%emt 0:02:32]} cxd5 {[%emt 0:05:28]} 22. Rxc8 {[%emt 0:01:50]} Bxc8 {[%emt 0:00:06]} 23. Rc1 {[%emt 0:00:54]} Bd7 {[%emt 0:00:53]} 24. Ba3 {[%emt 0:00:42]} Rf7 {[%emt 0:00:10]} 25. Bd6 {[%emt 0:01:37]} Kg7 {[%emt 0:02:08]} 26. Bb8 {[%emt 0:04:29]} Bb6 {[%emt 0:03:42]} 27. Bd6 {[%emt 0:01:41]} Bd8 {[%emt 0:00:30]} 28. Nb3 {[%emt 0:06:57]} Ng8 {[%emt 0:01:56]} 29. Nc5 {[%emt 0:01:23]} Bc8 {[%emt 0:01:51]} 30. Qc3 {[%emt 0:07:35]} Ne7 {[%emt 0:07:23]} 31. e3 {[%emt 0:07:57]} b6 {[%emt 0:00:43]} 32. Nd3 {[%emt 0:00:37]} Bb7 {[%emt 0:00:15]} 33. Nb4 {[%emt 0:00:44]} Nc8 {[%emt 0:01:38]} 34. Bb8 {[%emt 0:01:22]} g4 {[%emt 0:02:53]} 35. Nc6 {[%emt 0:00:44]} Bg5 {[%emt 0:02:09]} 36. Nxa7 {[%emt 0:02:31]} Nxa7 {[%emt 0:01:25]} 37. Bxa7 {[%emt 0:00:03]} Qa8 {[%emt 0:01:32]} 38. Bxb6 {[%emt 0:00:05]} Qxa4 {[%emt 0:00:05]} 39. Qd3 {[%emt 0:07:18]} h5 {[%emt 0:01:26]} 40. Kf2 {[%emt 0:03:48]} h4 {[%emt 0:01:43]} 41. Rc7 {[%emt 0:00:41]} Qa2+ {[%emt 0:02:27]} 42. Qe2 {[%emt 0:00:33]} Qb3 {[%emt 0:01:00]} 43. Rxf7+ {[%emt 0:01:32]} Kxf7 {[%emt 0:00:02]} 44. Bf1 {[%emt 0:02:02]} Bc8 {[%emt 0:00:44]} 45. Qd3 {[%emt 0:03:41]} Qb2+ {[%emt 0:00:17]} 46. Qe2 {[%emt 0:00:19]} Qb3 {[%emt 0:00:05]} 47. Qd3 {[%emt 0:01:31]} Qb2+ {[%emt 0:00:01]} 48. Qe2 {[%emt 0:00:08]} Qb3 {[%emt 0:00:05]} 1/2-1/2

[Event "1st 4NCL International Open"]
[Site "Telford"]
[Date "2018.11.02"]
[Round "4"]
[White "Ratnesan, Ranesh"]
[Black "Kulkarni, Rakesh"]
[Result "1-0"]
[ECO "D00"]
[WhiteElo "1994"]
[BlackElo "2297"]
[Annotator "ChessBase"]
[PlyCount "62"]
[EventDate "2018.10.31"]
[EventType "swiss"]
[EventCountry "GBR"]
[SourceTitle "playchess.com"]
[Source "ChessBase"]
[SourceQuality "1"]
[TimeControl "5400+30"]

1. d4 {[%emt 0:00:00]} Nf6 {[%emt 0:00:00]} 2. Bg5 {[%emt 0:00:00]} d5 {[%emt 0:00:31]} 3. Bxf6 {[%emt 0:00:40]} gxf6 {[%emt 0:00:05]} 4. e3 {[%emt 0:00:36]} Bg7 {[%emt 0:00:04]} 5. c4 {[%emt 0:03:06]} c6 {[%emt 0:01:51]} 6. Nc3 {[%emt 0:00:41]} O-O {[%emt 0:00:07]} 7. Qb3 {[%emt 0:06:46]} dxc4 {[%emt 0:01:49]} 8. Bxc4 {[%emt 0:00:14]} e5 {[%emt 0:00:18]} 9. Nge2 {[%emt 0:03:31]} b5 {[%emt 0:05:19]} 10. Bd3 {[%emt 0:02:53]} f5 {[%emt 0:00:50]} 11. Rd1 {[%emt 0:08:55]} Be6 {[%emt 0:02:14]} 12. d5 {[%emt 0:23:19]} cxd5 {[%emt 0:00:24]} 13. Bxb5 {[%emt 0:02:07]} a6 {[%emt 0:13:54]} 14. Ba4 {[%emt 0:10:11]} Nd7 {[%emt 0:00:13]} 15. Nxd5 {[%emt 0:04:36]} Nc5 {[%emt 0:08:13]} 16. Qa3 {[%emt 0:01:20]} Nxa4 {[%emt 0:08:55]} 17. Ne7+ {[%emt 0:00:35]} Qxe7 {[%emt 0:00:42]} 18. Qxe7 {[%emt 0:00:10]} Nxb2 {[%emt 0:00:05]} 19. Rd2 {[%emt 0:07:28]} Nc4 {[%emt 0:02:18]} 20. Rc2 {[%emt 0:00:15]} Rfe8 {[%emt 0:05:22]} 21. Qh4 {[%emt 0:01:41]} Rab8 {[%emt 0:06:02]} 22. O-O {[%emt 0:01:25]} Nd6 {[%emt 0:00:27]} 23. Qa4 {[%emt 0:01:30]} Rb6 {[%emt 0:01:25]} 24. Rd1 {[%emt 0:01:34]} Nb5 {[%emt 0:02:16]} 25. h3 {[%emt 0:02:04]} Bf8 {[%emt 0:00:22]} 26. Nc3 {[%emt 0:02:02]} Rc8 {[%emt 0:00:51]} 27. Nd5 {[%emt 0:01:58]} Rbc6 {[%emt 0:01:36]} 28. Rxc6 {[%emt 0:00:51]} Rxc6 {[%emt 0:00:02]} 29. Nf6+ {[%emt 0:00:21]} Kg7 {[%emt 0:00:07]} 30. Qh4 {[%emt 0:00:20]} h6 {[%emt 0:00:16]} 31. Rd8 {[%emt 0:01:45]} Bd6 {[%emt 0:00:58]} 1-0

[Event "1st 4NCL International Open"]
[Site "Telford"]
[Date "2018.11.02"]
[Round "4"]
[White "Jamieson, Ian"]
[Black "Zabrocki, Philip Am"]
[Result "1/2-1/2"]
[ECO "C00"]
[WhiteElo "1947"]
[BlackElo "1952"]
[Annotator "NA"]
[PlyCount "24"]
[EventDate "2018.10.31"]
[EventType "swiss"]
[EventCountry "GBR"]
[SourceTitle "playchess.com"]
[Source "ChessBase"]
[SourceQuality "1"]
[TimeControl "5400+30"]

{[%evp 13,24,-3,32767,32767,26,-19,-11,-5,164,13,27,31,16]} 1. e4 {[%emt 0:00:12]} e6 {[%emt 0:00:00]} 2. Nf3 {[%emt 0:00:33]} d5 {[%emt 0:00:00]} 3. e5 {[%emt 0:00:05]} c5 {[%emt 0:00:00]} 4. b4 {[%emt 0:00:16]} c4 {[%emt 0:01:09]} 5. c3 {[%emt 0:00:23]} a5 {[%emt 0:02:25]} 6. b5 {[%emt 0:04:53]} Nd7 {[%emt 0:06:06]} 7. d3 {[%emt 0:03:26]} cxd3 {[%emt 0:01:12]} 8. Bxd3 {[%emt 0:00:16]} f6 {[%emt 0:10:58] LiveBook: 8 Games} 9. Qe2 {[%emt 0:10:46]} fxe5 {[%emt 0:06:03]} 10. Nxe5 {[%emt 0:00:02]} Ngf6 $2 {[%emt 0:12:02] [#]} (10... Nxe5 $11 {and Black stays safe.} 11. Qxe5 Nf6) 11. Nxd7 {[%emt 0:17:17]} ({Only move:} 11. Ng6 $1 $18 {[%cal Rg6h8][%mdl 512]} hxg6 12. Bxg6+ Ke7 13. Ba3+ Nc5 14. Bxc5+ Kd7 15. Bxf8 Qxf8 16. Nd2) 11... Bxd7 {[%emt 0:01:41]} 12. Bf4 {[%emt 0:05:00]} Bc5 $11 {[%emt 0:00:11]} 1/2-1/2

[Event "1st 4NCL International Open"]
[Site "Telford"]
[Date "2018.11.02"]
[Round "4"]
[White "Rahulan, Thivyaa"]
[Black "Ther, Mate"]
[Result "0-1"]
[ECO "C54"]
[WhiteElo "1868"]
[BlackElo "1759"]
[Annotator "NA RC"]
[PlyCount "62"]
[EventDate "2018.10.31"]
[EventType "swiss"]
[EventCountry "GBR"]
[SourceTitle "playchess.com"]
[Source "ChessBase"]
[SourceQuality "1"]
[TimeControl "5400+30"]

{[%evp 8,64,27,18,18,32767,32767,32767,32767,32767,32767,0,33,2,10,-19,0,0,-3,-2,16,-2,-16,-64,-83,-87,-56,-80,-65,-88,-48,-65,-50,-50,32767,-10,235,22,90,32767,-60,-75,-60,-86,-10,-33,0,-47,32767,32767,32767,32767,-5,32767,32767,32767,32767,-312,-381]} 1. e4 {[%emt 0:00:00]} e5 {[%emt 0:00:00]} 2. Nf3 {[%emt 0:00:00]} Nc6 {[%emt 0:00:00]} 3. Bc4 {[%emt 0:00:31]} Bc5 {[%emt 0:00:00]} 4. c3 {[%emt 0:00:10]} Nf6 {[%emt 0:00:00]} 5. d3 {[%emt 0:00:09] LiveBook: 6379 Games} O-O {[%emt 0:00:07]} 6. O-O {[%emt 0:00:21]} d6 {[%emt 0:00:16]} 7. Re1 {[%emt 0:01:58]} Be6 {[%emt 0:04:24] C54: Giuoco Piano: 4 c3 Nf6, main lines with 5 d4 and 5 d3} (7... a6 8. a4 Ba7 9. h3 Kh8 10. d4 h6 11. dxe5 Nxe5 12. Nxe5 dxe5 13. Qxd8 Rxd8 14. Nd2 Kg8 15. Nf3 {½-½ (31) Anand,V (2771)-Aronian,L (2780) Batumi 2018}) 8. Bb3 {[%emt 0:01:48]} Qd7 {[%emt 0:05:16]} 9. Be3 $146 {[%emt 0:09:44]} ({Predecessor:} 9. Nbd2 Ne7 10. Nf1 Ng6 11. Ng3 c6 12. Bg5 Ng4 13. d4 exd4 14. cxd4 Bb4 15. Re2 {1-0 (48) Mossafer,G (1709)-Simon,C (1567) Neumuenster 2003}) 9... Rad8 {[%emt 0:06:28]} 10. Nbd2 {[%emt 0:05:31]} Bxe3 {[%emt 0:02:03]} 11. fxe3 {[%emt 0:06:29]} d5 {[%emt 0:08:25]} 12. exd5 {[%emt 0:02:52]} Bxd5 {[%emt 0:00:45]} 13. d4 {[%emt 0:01:11]} Qg4 {[%emt 0:12:32]} 14. Bxd5 {[%emt 0:18:59]} Nxd5 {[%emt 0:01:02]} 15. c4 {[%emt 0:03:54]} ({White should try} 15. Qc2 $11) 15... Ndb4 {[%emt 0:04:23]} 16. d5 {[%emt 0:01:29]} e4 {[%emt 0:00:35]} 17. h3 {[%emt 0:08:32]} Qg6 {[%emt 0:01:07]} 18. Nh4 {[%emt 0:01:12]} Qg5 {[%emt 0:04:44]} 19. dxc6 {[%emt 0:02:33]} Qxh4 {[%emt 0:01:12]} 20. cxb7 {[%emt 0:00:56]} Rd6 {[%emt 0:06:34]} 21. Re2 {[%emt 0:03:39]} ({White should play} 21. c5 $16 Rg6 22. Re2 Qxh3 23. Qb3) 21... Rfd8 $2 {[%emt 0:03:51] [#]} (21... Rb6 $11 {and Black is okay.}) 22. Qf1 $2 {[%emt 0:01:50]} (22. c5 $1 $18 {[%cal Rc5d6]} Rd3 23. a3) 22... Rb6 {[%emt 0:06:04]} (22... Qe7 $11 {remains equal.}) 23. Nb3 {[%emt 0:05:29]} Rxb7 {[%emt 0:04:44]} 24. Rd1 {[%emt 0:07:17]} Nd3 {[%emt 0:01:50]} ({Doch nicht} 24... Nxa2 $6 25. Rxd8+ Qxd8 26. Rd2 $14) 25. Red2 {[%emt 0:00:47]} Rd6 {[%emt 0:02:16]} (25... Qg5 $17 26. Qf4 Qxf4 27. exf4 Re8) 26. Qf5 {[%emt 0:03:26]} Rb8 {[%emt 0:01:27]} 27. Qa5 {[%emt 0:01:51]} Qg3 {[%emt 0:12:24]} 28. Qxc7 {[%emt 0:06:59]} Qxe3+ {[%emt 0:00:45]} 29. Kh2 {[%emt 0:00:09]} Rbd8 {[%emt 0:01:21]} 30. Nc1 {[%emt 0:03:36]} Qf4+ {[%emt 0:01:19]} 31. g3 {[%emt 0:00:04]} Qe3 {[%emt 0:11:06]} 0-1

[Event "1st 4NCL International Open"]
[Site "Telford"]
[Date "2018.11.02"]
[Round "4"]
[White "Akeya-Price, Robert"]
[Black "Bennett, Dominic L"]
[Result "1/2-1/2"]
[ECO "A41"]
[WhiteElo "1730"]
[BlackElo "1933"]
[Annotator "NA RC"]
[PlyCount "89"]
[EventDate "2018.10.31"]
[EventType "swiss"]
[EventCountry "GBR"]
[SourceTitle "playchess.com"]
[Source "ChessBase"]
[SourceQuality "1"]
[TimeControl "5400+30"]

{[%evp 12,66,61,56,32767,0,93,0,-13,-20,-7,4,50,19,24,13,16,32767,29,11,88,67,66,49,95,75,102,81,88,45,64,56,32767,132,150,32767,137,-87,-94,-401,32767,32767,32767,32767,32767,32767,32767,32767,32767,-1485,32767,-2308,-9686,-29982,-733,-662,-596]} 1. d4 {[%emt 0:00:00]} d6 {[%emt 0:00:17]} 2. Nf3 {[%emt 0:00:00]} Bg4 {[%emt 0:01:04]} 3. e4 {[%emt 0:04:35]} Nf6 {[%emt 0:05:59]} 4. Nc3 {[%emt 0:02:48]} e6 {[%emt 0:02:27]} 5. Bd3 {[%emt 0:03:28] A41: 1 d4 d6: Tartakower System and Modern Defence} Be7 {[%emt 0:00:00]} 6. h3 {[%emt 0:03:32]} Bh5 {[%emt 0:00:56] LiveBook: 23 Games} 7. g4 {[%emt 0:00:33]} (7. Qe2 a6 8. g4 Bg6 9. h4 d5 10. h5 Bxe4 11. Nxe4 dxe4 12. Bxe4 c6 {1-0 (80) Tomashevsky,E (2758)-Petrosian,T (2625) Berlin 2015}) 7... Bg6 {[%emt 0:01:50]} 8. Be3 {[%emt 0:04:12]} a6 $146 {[%emt 0:05:50]} ({Predecessor:} 8... d5 $11 9. exd5 (9. e5 Nfd7 10. Ne2 c5 11. c3 Nc6 12. Nf4 Rc8 13. Nxg6 hxg6 14. a3 c4 15. Bc2 b5 16. h4 Nb6 17. Kd2 Kd7 18. Ng5 {½-½ (18) Osmanovic,K (2337)-Tibensky,R (2391) Sisak 2008}) 9... Nxd5) 9. Qd2 {[%emt 0:01:12]} (9. g5 $16) 9... d5 {[%emt 0:00:00]} 10. e5 {[%emt 0:00:08]} Nfd7 {[%emt 0:02:54]} 11. Ne2 {[%emt 0:06:01]} Nc6 {[%emt 0:02:16]} 12. c3 {[%emt 0:07:49]} Na5 {[%emt 0:07:10]} 13. b3 {[%emt 0:04:26]} Bxd3 {[%emt 0:03:42]} 14. Qxd3 {[%emt 0:00:08]} b5 {[%emt 0:02:38]} 15. O-O {[%emt 0:03:09]} Nb6 {[%emt 0:02:09]} (15... c5 $11) 16. Qd2 {[%emt 0:04:22]} Nc6 {[%emt 0:02:13]} 17. Ne1 {[%emt 0:05:39]} O-O {[%emt 0:10:14]} 18. f4 {[%emt 0:02:53]} a5 {[%emt 0:10:29]} 19. f5 {[%emt 0:02:09]} a4 {[%emt 0:01:29]} 20. Rb1 {[%emt 0:05:17]} axb3 {[%emt 0:00:21]} 21. axb3 {[%emt 0:00:00]} b4 {[%emt 0:02:40]} 22. Nf4 {[%emt 0:04:56]} Qd7 {[%emt 0:06:34]} 23. Nh5 {[%emt 0:09:06]} bxc3 {[%emt 0:02:39]} (23... f6 $14) 24. Qf2 $2 {[%emt 0:01:21] [#]} (24. Qxc3 $16 {stays on course.} Rfc8 25. Nd3) 24... f6 $1 {[%emt 0:04:37]} 25. g5 $2 {[%emt 0:19:04]} (25. Nd3 $17 {is tougher.}) 25... fxe5 {[%emt 0:04:10]} 26. f6 {[%emt 0:01:13]} exd4 {[%emt 0:03:02]} 27. Bxd4 {[%emt 0:00:13]} e5 {[%emt 0:02:13]} 28. Bxc3 {[%emt 0:03:39]} Qxh3 {[%emt 0:04:33]} 29. Nxg7 {[%emt 0:02:04]} Qxc3 {[%emt 0:03:14]} 30. Qf5 $2 {[%emt 0:00:29]} (30. Ne6 Rf7 31. Ng2) 30... Bc5+ {[%emt 0:02:02]} 31. Kg2 {[%emt 0:00:17]} Ra2+ {[%emt 0:01:43]} 32. Kh1 {[%emt 0:00:29]} Nd4 {[%emt 0:02:44]} 33. Qg4 {[%emt 0:00:48]} Qd2 $19 {[%emt 0:01:01]} 34. Qh3 {[%emt 0:00:29]} Qe2 {[%emt 0:01:12]} 35. Ng2 {[%emt 0:00:34]} Qxg2+ {[%emt 0:00:30]} 36. Qxg2 {[%emt 0:00:03]} Rxg2 {[%emt 0:00:06]} 37. Kxg2 {[%emt 0:00:07]} Nc2 {[%emt 0:00:36]} 38. Rfc1 {[%emt 0:00:28]} Ne3+ {[%emt 0:00:17]} 39. Kf3 {[%emt 0:00:20]} e4+ {[%emt 0:00:25]} 40. Ke2 {[%emt 0:00:46]} Bd4 {[%emt 0:00:51]} 41. Ne6 {[%emt 0:01:09]} Nf5 {[%emt 0:00:22]} 42. Nxf8 {[%emt 0:00:15]} Kxf8 {[%emt 0:00:02]} 43. Rxc7 {[%emt 0:00:11]} Be3 {[%emt 0:00:58]} 44. Rxh7 {[%emt 0:01:08]} Bxg5 {[%emt 0:00:19]} 45. Rb7 {[%emt 0:00:23]} 1/2-1/2

[Event "1st 4NCL International Open"]
[Site "Telford"]
[Date "2018.11.02"]
[Round "4"]
[White "Ross, Stuart"]
[Black "Britton, Richard L"]
[Result "0-1"]
[ECO "B99"]
[WhiteElo "1608"]
[BlackElo "2204"]
[Annotator "ChessBase"]
[PlyCount "82"]
[EventDate "2018.10.31"]
[EventType "swiss"]
[EventCountry "GBR"]
[SourceTitle "playchess.com"]
[Source "ChessBase"]
[SourceQuality "1"]
[TimeControl "5400+30"]

1. e4 {[%emt 0:00:00]} c5 {[%emt 0:00:53]} 2. Nf3 {[%emt 0:00:00]} d6 {[%emt 0:00:32]} 3. d4 {[%emt 0:00:00]} cxd4 {[%emt 0:00:03]} 4. Nxd4 {[%emt 0:00:00]} Nf6 {[%emt 0:00:05]} 5. Nc3 {[%emt 0:00:17]} a6 {[%emt 0:00:03]} 6. Bg5 {[%emt 0:00:33]} e6 {[%emt 0:00:07]} 7. f4 {[%emt 0:00:16]} Nbd7 {[%emt 0:01:05]} 8. Qf3 {[%emt 0:00:25]} Qc7 {[%emt 0:00:05]} 9. O-O-O {[%emt 0:00:19]} Be7 {[%emt 0:02:27]} 10. g4 {[%emt 0:00:30]} b5 {[%emt 0:00:05]} 11. Bxf6 {[%emt 0:01:08]} Nxf6 {[%emt 0:00:04]} 12. g5 {[%emt 0:00:38]} Nd7 {[%emt 0:00:03]} 13. f5 {[%emt 0:00:53]} Bxg5+ {[%emt 0:00:58]} 14. Kb1 {[%emt 0:00:04]} Ne5 {[%emt 0:00:07]} 15. Qh5 {[%emt 0:01:27]} Qd8 {[%emt 0:00:20]} 16. Rg1 {[%emt 0:03:20]} Bf6 {[%emt 0:03:43]} 17. fxe6 {[%emt 0:07:04]} g6 {[%emt 0:07:32]} 18. exf7+ {[%emt 0:07:36]} Nxf7 {[%emt 0:03:01]} 19. Qd5 {[%emt 0:02:34]} Bd7 {[%emt 0:02:26]} 20. Ne6 {[%emt 0:19:01]} Bxe6 {[%emt 0:03:49]} 21. Qxe6+ {[%emt 0:00:15]} Qe7 {[%emt 0:00:03]} 22. Bh3 {[%emt 0:07:14]} Qxe6 {[%emt 0:02:28]} 23. Bxe6 {[%emt 0:00:14]} Bxc3 {[%emt 0:00:37]} 24. bxc3 {[%emt 0:02:00]} Rd8 {[%emt 0:00:44]} 25. Rdf1 {[%emt 0:02:08]} Ne5 {[%emt 0:00:19]} 26. Rf6 {[%emt 0:04:51]} Ke7 {[%emt 0:00:54]} 27. Rgf1 {[%emt 0:00:51]} Rhf8 {[%emt 0:09:45]} 28. Rxf8 {[%emt 0:01:27]} Rxf8 {[%emt 0:00:04]} 29. Rxf8 {[%emt 0:03:07]} Kxf8 {[%emt 0:00:04]} 30. Bc8 {[%emt 0:01:25]} a5 {[%emt 0:00:45]} 31. Ba6 {[%emt 0:00:53]} Nf3 {[%emt 0:00:28]} 32. Bxb5 {[%emt 0:01:40]} Nxh2 {[%emt 0:00:08]} 33. Be2 {[%emt 0:01:08]} Ke7 {[%emt 0:00:42]} 34. Kc1 {[%emt 0:00:45]} Ke6 {[%emt 0:00:07]} 35. Kd2 {[%emt 0:00:16]} Ke5 {[%emt 0:00:03]} 36. Ke3 {[%emt 0:00:40]} h5 {[%emt 0:00:03]} 37. c4 {[%emt 0:08:12]} Ng4+ {[%emt 0:01:45]} 38. Kf3 {[%emt 0:00:57]} Nf6 {[%emt 0:00:05]} 39. Bd3 {[%emt 0:00:49]} g5 {[%emt 0:00:11]} 40. c3 {[%emt 0:03:36]} h4 {[%emt 0:00:31]} 41. Ke3 {[%emt 0:02:49]} g4 {[%emt 0:01:33]} 0-1